bitfinex-derivatives/quotes_SOLF0:USTF0_20240926
["timestamp","ask_amount","ask_price","bid_price","bid_amount"]
[1727315508613,43.255,148.28,148.14,16.22]
[1727315508614,6.745,148.28,148.14,16.22]
[1727315508805,16.22,148.26,148.16,16.22]
[1727315509005,13.60114103,148.25,148.16,16.22]
[1727315509210,3.3744,148.2,148.16,16.22]
[1727315509411,13.60114103,148.25,148.16,16.22]
[1727315509913,3.3741,148.21,148.16,19.5951]
[1727315510514,3.3743,148.2,148.16,19.5951]
[1727315510817,3.3743,148.2,148.16,16.22]
[1727315511824,3.3745,148.19,148.16,16.22]
[1727315513014,3.3743,148.2,148.16,16.22]
[1727315516019,13.60114103,148.25,148.16,16.22]
[1727315516225,16.22,148.24,148.16,16.22]
[1727315516525,3.3753,148.16,148.13,16.22]
[1727315516817,16.22,148.24,148.13,16.22]
[1727315517221,3.43282687,148.23,148.14,3.3755]
[1727315517619,3.3747,148.19,148.14,3.3755]
[1727315517822,3.43282687,148.23,148.14,3.3755]
[1727315518627,4.0181,148.27,148.13,19.5958]
[1727315518925,16.22,148.22,148.13,19.5958]
[1727315519121,4.0207,148.21,148.13,19.5958]
[1727315519719,3.3749,148.18,148.13,19.5958]
[1727315520419,4.0207,148.21,148.13,19.5958]
[1727315520921,4.0207,148.21,148.12,16.22]
[1727315521429,4.0207,148.21,148.14,16.22]
[1727315521915,3.375,148.18,148.14,16.22]
[1727315522620,3.375,148.18,148.16,16.22]
[1727315522825,4.0207,148.21,148.16,16.22]
[1727315523421,1.2808,148.21,148.16,16.22]
[1727315525325,3.3743,148.2,148.16,19.5951]
[1727315525820,3.374,148.22,148.18,16.22]
[1727315526622,17.5868,148.26,148.16,19.5951]
[1727315526924,13.62676096,148.25,148.16,16.22]
[1727315527226,13.62676096,148.25,148.23,16.22]
[1727315527421,16.22,148.34,148.23,16.22]
[1727315527615,11.39488595,148.33,148.25,16.22]
[1727315527815,29.77399556,148.33,148.16,3.33141096]
[1727315528024,16.22,148.31,148.12,82.3546]
[1727315528326,27.73264239,148.3,148.2,19.5943]
[1727315528524,13.62135644,148.29,148.2,19.5943]
[1727315528724,16.33775644,148.3,148.2,16.22]
[1727315529427,16.22,148.29,148.2,16.22]
[1727315530125,3.3732,148.25,148.2,16.22]
[1727315530320,10.37,148.27,148.22,10.37]
[1727315530518,2.7164,148.3,148.22,10.37]
[1727315530519,3.3736,148.24,148.22,10.37]
[1727315530718,2.7164,148.3,148.17,81.04]
[1727315530719,10.37,148.26,148.21,10.37]
[1727315530919,27.7081612,148.3,148.22,10.37]
[1727315531120,3.3734,148.24,148.22,10.37]
[1727315531522,23.97789141,148.27,148.22,10.37]
[1727315531721,3.3734,148.25,148.22,10.37]
[1727315532022,10.37,148.26,148.22,10.37]
[1727315532223,3.3735,148.24,148.22,10.37]
[1727315533623,10.37,148.26,148.22,10.37]
[1727315534127,2.7164,148.3,148.22,10.37]
[1727315534128,10.37,148.27,148.22,10.37]
[1727315534328,3.3734,148.24,148.19,3.3745]
[1727315534522,24.97881764,148.29,148.06,81.02]
[1727315534721,10.37,148.21,148.16,10.37]
[1727315534922,10.37,148.24,148.17,10.37]
[1727315535222,10.37,148.25,148.2,10.37]
[1727315535626,23.97080961,148.25,148.2,10.37]
[1727315535823,13.60080961,148.24,148.2,10.37]
[1727315536217,3.374,148.22,148.2,10.37]
[1727315536821,3.374,148.21,148.2,10.37]
[1727315537823,1.3919,148.26,148.2,10.37]
[1727315538137,1.3919,148.26,148.06,81.02]
[1727315538138,1.3919,148.26,148.22,10.37]
[1727315538830,3.3736,148.24,148.22,10.37]
[1727315539431,3.3736,148.23,148.21,10.37]
[1727315540330,3.3734,148.24,148.22,10.37]
[1727315540541,1.3984,148.29,148.23,10.37]
[1727315540833,1.3984,148.29,148.25,10.37]
[1727315541426,3.3729,148.26,148.25,10.37]
[1727315542628,3.3732,148.25,148.23,10.37]
[1727315543927,3.3732,148.25,148.24,10.37]
[1727315544438,3.373,148.26,148.21,3.374]
[1727315544629,3.373,148.26,148.23,16.19]
[1727315546037,3.3732,148.25,148.23,16.19]
[1727315546736,2.7164,148.3,148.23,16.19]
[1727315546932,16.298112,148.3,148.23,16.19]
[1727315547133,13.581712,148.29,148.23,16.19]
[1727315547330,2.7164,148.3,148.23,16.19]
[1727315547832,32.488112,148.3,148.2,16.19]
[1727315548133,18.9064,148.3,148.22,16.19]
[1727315548934,3.3731,148.26,148.22,16.19]
[1727315549839,3.3732,148.25,148.22,16.19]
[1727315550340,3.373,148.26,148.22,16.19]
[1727315551235,3.3726,148.28,148.24,16.19]
[1727315551640,1.3668,148.3,148.24,16.19]
[1727315552344,3.3727,148.28,148.24,16.19]
[1727315552736,1.3668,148.3,148.24,16.19]
[1727315553540,3.373,148.26,148.24,16.19]
[1727315554237,3.3731,148.25,148.22,16.19]
[1727315554743,3.3734,148.24,148.22,16.19]
[1727315555444,3.3736,148.23,148.21,81.0]
[1727315558143,17.5152,148.29,148.03,250.72423596]
[1727315558144,3.29181028,148.24,148.03,573.54379202]
[1727315558438,16.19,148.23,148.14,16.19]
[1727315558745,17.5495,148.23,148.14,19.55403907]
[1727315559439,1.3595,148.23,148.15,16.19]
[1727315559945,1.3595,148.23,148.12,16.19]
[1727315559946,1.3595,148.23,148.17,16.19]
[1727315561642,16.19,148.27,148.17,16.19]
[1727315561942,3.3743,148.21,148.17,16.19]
[1727315562147,17.4921,148.27,148.17,16.19]
[1727315563646,3.3744,148.2,148.17,16.19]
[1727315564549,3.3745,148.19,148.17,16.19]
[1727315565544,3.3744,148.2,148.17,16.19]
[1727315565743,17.4921,148.27,148.15,1.3619]
[1727315565942,3.3747,148.19,148.17,16.19]
[1727315566636,3.3743,148.2,148.17,16.19]
[1727315567747,3.3745,148.19,148.17,16.19]
[1727315570058,13.60056463,148.26,148.18,16.19]
[1727315570248,17.4921,148.27,148.18,16.19]
[1727315570455,10.37,148.26,148.22,10.37]
[1727315570647,10.37,148.25,148.2,10.37]
[1727315570954,10.37,148.24,148.19,10.37]
[1727315571465,3.3743,148.2,148.19,10.37]
[1727315571757,1.3021,148.27,148.19,10.37]
[1727315571758,11.6721,148.27,148.19,10.37]
[1727315572051,10.37,148.26,148.21,10.37]
[1727315572752,3.374,148.22,148.21,10.37]
[1727315584867,3.3737,148.23,148.21,10.37]
[1727315585065,1.3021,148.27,148.2,3.3743]
[1727315585066,1.3021,148.27,148.22,10.37]
[1727315585261,1.3021,148.27,148.25,10.37]
[1727315585975,14.93468297,148.27,148.24,10.37]
[1727315586167,13.63258297,148.26,148.24,10.37]
[1727315586368,1.3021,148.27,148.24,10.37]
[1727315586769,23.07745088,148.27,148.23,10.37]
[1727315586967,13.63258297,148.26,148.23,10.37]
[1727315587477,3.3734,148.24,148.23,10.37]
[1727315588274,3.3734,148.25,148.23,10.37]
[1727315588476,3.3734,148.25,148.24,10.37]
[1727315592177,3.3736,148.24,148.23,10.37]
[1727315595982,3.3733,148.25,148.23,10.37]
[1727315596280,3.3733,148.25,148.21,3.374]
[1727315596281,3.3733,148.25,148.24,10.37]
[1727315598586,1.3021,148.27,148.24,10.37]
[1727315599180,14.94505264,148.27,148.24,10.37]
[1727315599384,13.64295264,148.26,148.24,10.37]
[1727315599584,3.3729,148.26,148.24,10.37]
[1727315599885,14.94505264,148.27,148.24,10.37]
[1727315600184,13.64295264,148.26,148.24,10.37]
[1727315600384,1.3021,148.27,148.24,10.37]
[1727315600787,3.3729,148.26,148.24,10.37]
[1727315600988,1.3021,148.27,148.25,10.37]
[1727315601191,14.94505264,148.27,148.25,10.37]
[1727315601381,13.64295264,148.26,148.25,10.37]
[1727315601581,3.3732,148.25,148.21,3.3739]
[1727315601781,3.3732,148.25,148.24,10.37]
[1727315603284,3.373,148.26,148.24,10.37]
[1727315603492,3.373,148.26,148.2,3.31555027]
[1727315603493,13.64249542,148.27,148.25,10.37]
[1727315603692,1.3252,148.29,148.26,10.37]
[1727315603693,13.64249542,148.28,148.26,10.37]
[1727315603891,17.01499542,148.28,148.27,10.37]
[1727315604099,3.3725,148.28,148.27,10.37]
[1727315604784,17.01499542,148.28,148.27,10.37]
[1727315604978,1.3252,148.29,148.23,3.3735]
[1727315605184,3.3728,148.27,148.26,10.37]
[1727315608784,14.96537231,148.29,148.21,3.3739]
[1727315608989,14.96537231,148.29,148.19,81.0]
[1727315608990,10.37,148.27,148.19,81.0]
[1727315609193,10.37,148.27,148.23,10.37]
[1727315609410,3.3734,148.24,148.23,10.37]
[1727315610289,3.3739,148.22,148.18,3.3747]
[1727315610597,11.7841,148.26,148.2,10.37]
[1727315610598,10.37,148.25,148.2,10.37]
[1727315610894,10.37,148.25,148.21,10.37]
[1727315611587,11.7841,148.26,148.21,10.37]
[1727315611792,11.7841,148.26,148.16,155.16313043]
[1727315611793,1.4141,148.26,148.22,10.37]
[1727315612095,1.4141,148.26,148.24,10.37]
[1727315612096,15.05785596,148.26,148.24,10.37]
[1727315612295,1.4141,148.26,148.24,10.37]
[1727315612899,3.3731,148.25,148.24,10.37]
[1727315614594,25.428126,148.26,148.16,155.16313043]
[1727315614787,11.7841,148.26,148.21,10.37]
[1727315615494,25.42810843,148.26,148.21,10.37]
[1727315615712,11.7841,148.26,148.21,10.37]
[1727315615890,3.3738,148.22,148.21,10.37]
[1727315616096,1.4141,148.26,148.21,10.37]
[1727315616295,1.4141,148.26,148.22,10.37]
[1727315616804,15.05829297,148.26,148.22,10.37]
[1727315617029,11.7841,148.26,148.16,155.16313043]
[1727315617196,11.7841,148.26,148.21,10.37]
[1727315617601,25.42850276,148.26,148.21,10.37]
[1727315617799,3.3738,148.22,148.21,10.37]
[1727315618200,3.3738,148.22,148.17,3.3749]
[1727315618400,3.3738,148.22,148.2,10.37]
[1727315619899,3.374,148.21,148.17,3.3749]
[1727315620098,10.37,148.25,148.19,10.37]
[1727315620407,3.3742,148.21,148.19,10.37]
[1727315620699,3.3742,148.21,148.16,77.55823043]
[1727315620700,3.3742,148.21,148.2,10.37]
[1727315623603,3.3739,148.22,148.2,10.37]
[1727315623803,3.3739,148.22,148.21,10.37]
[1727315626308,3.374,148.21,148.2,10.37]
[1727315629604,20.29,148.39,148.2,13.70389171]
[1727315629806,4.1209,148.32,148.28,10.37]
[1727315630006,4.1209,148.32,148.2,13.70389171]
[1727315630007,3.3722,148.29,148.2,13.70389171]
[1727315630204,3.3722,148.29,148.28,10.37]
[1727315630406,32.53920708,148.32,148.2,13.70389171]
[1727315630407,42.90920708,148.32,148.27,10.37]
[1727315630605,25.06551116,148.31,148.27,10.37]
[1727315630902,3.3725,148.28,148.27,10.37]
[1727315632406,3.3727,148.27,148.26,10.37]
[1727315633408,13.64737743,148.3,148.26,10.37]
[1727315633606,10.42737742,148.3,148.29,10.37]
[1727315634500,10.37,148.32,148.25,81.0]
[1727315634702,10.37,148.32,148.27,10.37]
[1727315634901,1.3597,148.31,148.27,10.37]
[1727315635405,3.372,148.3,148.27,10.37]
[1727315637713,4.7315,148.31,148.28,10.37]
[1727315638113,1.3597,148.31,148.29,10.37]
[1727315638314,1.3597,148.31,148.3,10.37]
[1727315638612,1.3597,148.31,148.29,10.37]
[1727315639224,1.3597,148.31,148.3,10.37]
[1727315640118,2.6836,148.35,148.3,10.37]
[1727315640312,3.9728,148.35,148.31,10.37]
[1727315640614,3.9728,148.35,148.29,10.37]
[1727315640615,3.3715,148.32,148.29,10.37]
[1727315642020,3.3718,148.31,148.29,10.37]
[1727315642216,10.37,148.34,148.29,10.37]
[1727315642716,3.3716,148.32,148.29,10.37]
[1727315643418,3.9728,148.35,148.3,10.37]
[1727315643419,3.3714,148.33,148.3,10.37]
[1727315643620,14.3428,148.35,148.3,10.37]
[1727315644015,2.6119,148.35,148.34,10.37]
[1727315646117,13.4738208,148.38,148.34,10.37]
[1727315646320,3.42171908,148.39,148.35,10.37]
[1727315646519,3.3708,148.36,148.34,10.37]
[1727315646821,2.6707,148.38,148.25,81.0]
[1727315647123,3.371,148.35,148.32,10.37]
[1727315647321,10.37,148.37,148.32,10.37]
[1727315647519,10.37,148.37,148.34,10.37]
[1727315648414,2.6282,148.38,148.34,10.37]
[1727315648620,6.7356,148.49,148.37,10.37]
[1727315648621,10.37,148.43,148.37,10.37]
[1727315648820,1.3755,148.42,148.37,10.37]
[1727315649023,3.3701,148.39,148.37,10.37]
[1727315649327,14.4751,148.42,148.37,10.37]
[1727315649526,3.3701,148.39,148.37,10.37]
[1727315652125,10.37,148.39,148.34,10.37]
[1727315652521,3.41133233,148.41,148.35,10.37]
[1727315652522,3.3703,148.38,148.35,10.37]
[1727315652830,10.37,148.4,148.35,10.37]
[1727315653029,3.3705,148.37,148.32,3.3714]
[1727315653223,3.41133233,148.41,148.33,10.37]
[1727315653418,10.37,148.38,148.33,10.37]
[1727315653819,3.3706,148.37,148.33,10.37]
[1727315654019,10.37,148.39,148.34,10.37]
[1727315654431,13.7481785,148.39,148.33,10.37]
[1727315654631,4.1051,148.42,148.33,10.37]
[1727315654945,10.37,148.34,148.3,80.96]
[1727315655533,13.0205,148.34,148.3,80.96]
[1727315656128,3.3717,148.32,148.3,80.96]
[1727315656325,13.0205,148.34,148.3,91.33]
[1727315657232,13.0205,148.34,148.3,80.96]
[1727315657434,3.3718,148.32,148.3,91.33]
[1727315657833,13.0205,148.34,148.3,91.33]
[1727315658233,2.6505,148.34,148.31,10.37]
[1727315658939,6.0218,148.34,148.31,10.37]
[1727315659141,10.37,148.39,148.33,10.37]
[1727315659336,10.37,148.39,148.34,10.37]
[1727315659842,3.37178691,148.38,148.34,10.37]
[1727315660435,3.3709,148.36,148.31,16.2]
[1727315660832,3.3709,148.36,148.31,19.5716]
[1727315661037,3.3709,148.35,148.31,16.2]
[1727315661440,3.40179704,148.38,148.31,16.2]
[1727315661637,16.2,148.38,148.29,16.2]
[1727315661844,16.2,148.38,148.27,16.2]
[1727315661845,16.2,148.36,148.27,16.2]
[1727315662140,3.3713,148.34,148.29,16.2]
[1727315662737,3.39201595,148.38,148.29,16.2]
[1727315662938,16.2,148.39,148.29,16.2]
[1727315663242,19.50533522,148.39,148.29,16.2]
[1727315663443,19.50533522,148.39,148.3,3.3719]
[1727315663644,19.50533522,148.39,148.29,16.2]
[1727315663941,16.2,148.38,148.29,16.2]
[1727315664573,3.3715,148.33,148.29,16.2]
[1727315665946,3.3716,148.32,148.29,16.2]
[1727315668644,3.3718,148.31,148.29,16.2]
[1727315669640,3.3714,148.33,148.29,16.2]
[1727315669947,3.3714,148.33,148.29,19.5721]
[1727315670345,19.57211648,148.38,148.3,3.372]
[1727315670545,19.57211648,148.38,148.29,16.2]
[1727315671753,3.3716,148.32,148.29,16.2]
[1727315672254,19.57211648,148.38,148.29,16.2]
[1727315672447,3.3718,148.31,148.29,16.2]
[1727315674247,1.3389,148.37,148.29,19.5721]
[1727315674847,3.3715,148.33,148.29,19.5721]
[1727315676947,3.3715,148.32,148.29,19.5721]
[1727315680456,3.3715,148.32,148.31,10.37]
[1727315683156,3.3715,148.32,148.3,10.37]
[1727315685460,3.3718,148.31,148.28,3.3724]
[1727315685761,1.3389,148.37,148.27,10.37]
[1727315685762,10.37,148.32,148.27,10.37]
[1727315685957,3.3727,148.28,148.26,10.37]
[1727315686157,10.37,148.31,148.26,10.37]
[1727315689264,3.3726,148.28,148.26,10.37]
[1727315690262,3.3727,148.27,148.26,10.37]
[1727315690465,10.37,148.31,148.26,10.37]
[1727315690767,10.37,148.29,148.23,84.3335]
[1727315690963,10.37,148.29,148.24,10.37]
[1727315690964,3.3728,148.27,148.24,10.37]
[1727315691563,3.373,148.26,148.24,10.37]
[1727315693162,3.373,148.26,148.23,84.3335]
[1727315693163,3.3731,148.25,148.23,80.96]
[1727315693471,3.3731,148.25,148.23,91.33]
[1727315693872,3.3731,148.25,148.23,10.37]
[1727315695268,3.3731,148.25,148.24,10.37]
[1727315695466,3.3729,148.27,148.24,10.37]
[1727315695667,1.4141,148.36,148.25,10.37]
[1727315695862,3.3726,148.28,148.26,10.37]
[1727315696173,24.84603663,148.35,148.27,10.37]
[1727315696472,10.37,148.33,148.27,10.37]
[1727315697475,10.37,148.32,148.27,10.37]
[1727315698974,3.3721,148.3,148.27,10.37]
[1727315699477,3.3721,148.3,148.26,13.7428]
[1727315699674,3.3723,148.29,148.26,10.37]
[1727315700377,3.42936732,148.3,148.21,80.98]
[1727315700682,10.37,148.25,148.21,80.98]
[1727315700875,3.3736,148.24,148.21,80.98]
[1727315701080,10.37,148.25,148.21,80.98]
[1727315701875,3.3738,148.23,148.21,91.35]
[1727315702179,10.37,148.27,148.21,91.35]
[1727315703078,10.37,148.26,148.21,91.35]
[1727315703279,3.3736,148.23,148.21,10.37]
[1727315703481,10.37,148.25,148.2,10.37]
[1727315704376,10.37,148.23,148.19,10.37]
[1727315705081,3.3742,148.21,148.19,10.37]
[1727315705279,10.37,148.23,148.19,10.37]
[1727315705484,10.37,148.22,148.17,10.37]
[1727315705983,10.37,148.21,148.16,155.16313043]
[1727315706281,10.37,148.21,148.16,165.53313043]
[1727315707473,10.37,148.21,148.16,91.35]
[1727315708071,3.3749,148.18,148.16,91.35]
[1727315708277,3.3313038,148.26,148.17,10.37]
[1727315708476,10.37,148.23,148.18,10.37]
[1727315708876,3.3743,148.2,148.18,10.37]
[1727315710071,3.3743,148.2,148.17,10.37]
[1727315711282,24.81365774,148.29,148.19,10.37]
[1727315711479,10.37,148.24,148.19,10.37]
[1727315711675,10.37,148.25,148.21,10.37]
[1727315711876,10.37,148.26,148.21,10.37]
[1727315712077,10.37,148.26,148.22,10.37]
[1727315712781,10.37,148.26,148.21,10.37]
[1727315713675,10.37,148.25,148.2,10.37]
[1727315714279,6.7409,148.37,148.18,19.5747]
[1727315714280,16.2,148.27,148.18,19.5747]
[1727315714475,3.34232933,148.28,148.16,97.18]
[1727315714476,16.2,148.25,148.16,97.18]
[1727315714982,3.3739,148.22,148.18,3.3747]
[1727315715186,16.2,148.25,148.18,3.3747]
[1727315715476,16.2,148.21,148.16,80.98]
[1727315715677,16.2,148.19,148.16,80.98]
[1727315716076,16.2,148.19,148.11,74.20443111]
[1727315716483,3.3757,148.14,148.11,74.20443111]
[1727315717582,3.3759,148.13,148.11,74.20443111]
[1727315719378,3.3759,148.13,148.09,16.2]
[1727315719379,16.2,148.16,148.07,81.0]
[1727315719581,19.50440695,148.2,148.07,81.0]
[1727315719582,16.2,148.14,148.07,81.0]
[1727315719785,16.2,148.16,148.07,97.2]
[1727315719985,3.376,148.13,148.09,3.3767]
[1727315720284,16.2,148.14,148.07,81.0]
[1727315720486,3.3767,148.1,148.07,81.0]
[1727315722091,3.3764,148.11,148.07,84.3772]
[1727315722291,20.25,148.27,148.1,16.2]
[1727315722491,16.2,148.24,148.13,16.2]
[1727315722689,16.2,148.24,148.16,16.2]
[1727315723088,3.3745,148.19,148.16,16.2]
[1727315723691,3.3745,148.19,148.14,19.5756]
[1727315723889,3.3748,148.18,148.14,19.5756]
[1727315724791,3.3748,148.18,148.14,16.2]
[1727315726291,3.3748,148.18,148.14,19.5756]
[1727315728322,3.375,148.17,148.14,16.2]
[1727315728691,3.33625631,148.23,148.15,16.2]
[1727315728891,16.2,148.24,148.16,3.3751]
[1727315728892,3.3743,148.2,148.16,3.3751]
[1727315729094,3.32578318,148.22,148.16,3.3751]
[1727315729293,16.2,148.24,148.16,3.3751]
[1727315729494,19.61020249,148.24,148.16,3.3751]
[1727315729900,16.2,148.35,148.17,19.5749]
[1727315729901,16.2,148.26,148.17,19.5749]
[1727315730099,3.39061721,148.25,148.17,19.5749]
[1727315730301,3.39061721,148.25,148.17,16.2]
[1727315730601,16.2,148.24,148.16,16.2]
[1727315732098,3.3743,148.2,148.16,16.2]
[1727315734303,3.3741,148.21,148.16,16.2]
[1727315735902,16.2,148.26,148.16,16.2]
[1727315736107,16.2,148.24,148.16,16.2]
[1727315736606,3.3744,148.2,148.16,16.2]
[1727315737205,3.3744,148.2,148.16,19.5751]
[1727315739909,3.3747,148.19,148.16,16.2]
[1727315741432,3.39602005,148.28,148.17,16.2]
[1727315741708,10.38495917,148.37,148.2,16.2]
[1727315741709,16.2,148.31,148.2,16.2]
[1727315742101,3.373,148.26,148.2,16.2]
[1727315742705,3.373,148.26,148.21,3.3738]
[1727315743702,3.373,148.26,148.2,16.2]
[1727315743903,3.31554891,148.29,148.23,16.2]
[1727315744109,16.2,148.31,148.23,16.2]
[1727315745715,3.3729,148.26,148.23,16.2]
[1727315748908,3.3733,148.25,148.21,19.574]
[1727315749113,16.2,148.31,148.21,19.574]
[1727315749515,3.3734,148.24,148.21,16.2]
[1727315750118,20.25,148.37,148.21,16.2]
[1727315750410,30.38281648,148.38,148.24,16.2]
[1727315750411,16.2,148.34,148.24,16.2]
[1727315750607,6.7408,148.37,148.24,16.2]
[1727315750804,3.373,148.26,148.23,16.2]
[1727315751317,19.61116502,148.3,148.23,16.2]
[1727315751318,3.41116502,148.3,148.23,16.2]
[1727315751517,3.3731,148.25,148.23,16.2]
[1727315752112,3.3729,148.26,148.23,16.2]
[1727315753015,26.9908,148.37,148.17,81.02]
[1727315753016,16.2,148.34,148.25,16.2]
[1727315753214,16.2,148.37,148.27,16.2]
[1727315753418,3.3718,148.32,148.27,19.5725]
[1727315753920,3.3718,148.32,148.29,16.2]
[1727315754112,16.2,148.37,148.29,16.2]
[1727315754113,3.3719,148.31,148.29,16.2]
[1727315756515,19.57211648,148.38,148.29,16.2]
[1727315757025,3.3723,148.29,148.25,19.573]
[1727315758218,3.3728,148.27,148.25,16.2]
[1727315759322,3.3728,148.27,148.23,84.3735]
[1727315759323,3.3729,148.26,148.23,100.5735]
[1727315759523,3.3729,148.26,148.23,97.2]
[1727315760527,16.2,148.32,148.23,97.2]
[1727315760726,19.55323281,148.34,148.25,16.2]
[1727315760926,16.2,148.34,148.25,16.2]
[1727315761529,3.31466148,148.33,148.25,16.2]
[1727315762131,3.31466148,148.33,148.27,16.2]
[1727315762424,16.2,148.36,148.27,16.2]
[1727315762631,3.3725,148.28,148.27,16.2]
[1727315763027,3.3727,148.27,148.23,19.5736]
[1727315763331,16.2,148.32,148.23,16.2]
[1727315763523,3.3729,148.26,148.23,16.2]
[1727315763722,3.42936732,148.32,148.25,16.2]
[1727315763923,16.2,148.34,148.25,16.2]
[1727315764432,16.2,148.34,148.25,19.5731]
[1727315764433,3.3724,148.29,148.25,19.5731]
[1727315764623,3.3724,148.29,148.25,16.2]
[1727315764932,3.3724,148.29,148.25,19.5731]
[1727315765228,19.54660006,148.34,148.21,80.98]
[1727315765229,6.7378,148.44,148.28,3.3724]
[1727315765421,16.2,148.4,148.3,16.2]
[1727315765624,3.3718,148.31,148.28,16.2]
[1727315766128,16.2,148.36,148.28,16.2]
[1727315766432,19.65119185,148.36,148.28,16.2]
[1727315766927,16.2,148.39,148.28,19.5724]
[1727315767131,13.41981771,148.38,148.28,19.5724]
[1727315767530,3.3715,148.33,148.28,19.5724]
[1727315767926,13.41981771,148.38,148.28,16.2]
[1727315768125,3.372,148.3,148.26,16.2]
[1727315768429,16.2,148.35,148.26,16.2]
[1727315768730,19.57369315,148.35,148.26,16.2]
[1727315768929,16.2,148.33,148.24,97.18]
[1727315769828,3.37234394,148.32,148.24,80.98]
[1727315770131,36.46,148.43,148.24,80.98]
[1727315770132,16.2,148.31,148.24,80.98]
[1727315770324,3.3727,148.28,148.24,80.98]
[1727315770524,3.3727,148.28,148.24,97.18]
[1727315770932,3.3723,148.29,148.24,97.18]
[1727315771128,16.2,148.35,148.26,16.2]
[1727315771328,3.32601909,148.35,148.26,16.2]
[1727315771529,3.3719,148.31,148.26,19.5727]
[1727315772125,3.3719,148.31,148.28,16.2]
[1727315772326,3.32298255,148.35,148.28,16.2]
[1727315772527,16.2,148.37,148.28,16.2]
[1727315772928,16.2,148.39,148.28,19.5723]
[1727315773129,19.62588738,148.39,148.28,19.5723]
[1727315773827,3.3716,148.32,148.28,19.5723]
[1727315775635,19.62588738,148.39,148.28,16.2]
[1727315775937,16.2,148.38,148.28,16.2]
[1727315776436,3.3714,148.33,148.28,19.5722]
[1727315776630,16.2,148.38,148.28,19.5722]
[1727315776831,16.2,148.38,148.3,16.2]
[1727315777136,3.3712,148.34,148.3,19.5719]
[1727315777336,16.2,148.4,148.31,16.2]
[1727315777337,3.3172502,148.39,148.31,16.2]
[1727315777528,3.3715,148.32,148.31,16.2]
[1727315777838,16.2,148.38,148.31,16.2]
[1727315778037,19.4912762,148.38,148.31,16.2]
[1727315778338,19.4912762,148.38,148.23,155.12660602]
[1727315778339,19.4912762,148.38,148.29,16.2]
[1727315779034,3.3715,148.32,148.29,16.2]
[1727315780135,19.4912762,148.38,148.29,19.572]
[1727315781335,3.3716,148.32,148.29,16.2]
[1727315781529,16.2,148.36,148.29,16.2]
[1727315781734,3.3718,148.31,148.29,16.2]
[1727315782039,16.2,148.36,148.27,3.3725]
[1727315782040,16.2,148.36,148.27,16.2]
[1727315782439,3.2912762,148.38,148.27,16.2]